[Event "Int SVK-ch Open 2020"]
[Site "Drienica"]
[Date "2020.08.12"]
[Round "6.19"]
[White "Ivanecka, Natalia"]
[Black "Kubikova, Nina"]
[Result "1-0"]
[ECO "C55"]
[WhiteElo "1641"]
[BlackElo "1256"]
[Annotator "NA"]
[PlyCount "40"]
[EventDate "2020.08.07"]
[EventType "swiss"]
[EventCountry "SVK"]
[SourceTitle "playchess.com"]
[Source "ChessBase"]
[SourceQuality "1"]
[TimeControl "40/5400+30:1800+30"]

1. e4 {[%emt 0:00:00]} e5 {[%emt 0:00:00]} 2. Nf3 {[%emt 0:00:00]} Nc6 {[%emt 0:00:00]} 3. Bc4 {[%emt 0:00:00]} Nf6 {[%emt 0:00:00]} 4. d3 {[%emt 0:00:38]} Be7 {[%emt 0:00:13]} 5. O-O {[%emt 0:00:34]} O-O {[%emt 0:00:19]} 6. Re1 {[%emt 0:01:44]} d6 {[%emt 0:01:17]} 7. h3 {[%emt 0:02:49]} Be6 {[%emt 0:06:56]} 8. Nbd2 {[%emt 0:02:38]} h6 {[%emt 0:00:27]} 9. c3 {[%emt 0:02:16]} d5 {[%emt 0:15:31]} 10. exd5 {[%emt 0:01:40]} Nxd5 {[%emt 0:00:08]} 11. Nxe5 {[%emt 0:06:11]} Nxe5 {[%emt 0:00:13]} 12. Rxe5 {[%emt 0:00:06]} Bd6 {[%emt 0:00:49]} 13. Re1 {[%emt 0:02:29]} Qd7 {[%emt 0:02:42]} 14. Qf3 {[%emt 0:03:31]} Rae8 {[%emt 0:05:47]} 15. Ne4 {[%emt 0:04:16]} f5 {[%emt 0:05:30]} 16. Nxd6 {[%emt 0:05:40]} Qxd6 {[%emt 0:00:11]} 17. Rxe6 {[%emt 0:01:28]} Rxe6 {[%emt 0:01:23]} 18. Bxd5 {[%emt 0:00:06]} Rff6 {[%emt 0:02:35]} 19. Bxe6+ {[%emt 0:00:29]} Rxe6 {[%emt 0:00:20]} 20. Bf4 {[%emt 0:00:11]} Qd8 1-0

[Event "Int SVK-ch Open 2020"]
[Site "Drienica"]
[Date "2020.08.13"]
[Round "6.20"]
[White "Geffert, Anton"]
[Black "Panko Eduard ml."]
[Result "0-1"]
[ECO "A90"]
[WhiteElo "1909"]
[BlackElo "2007"]
[Annotator "ChessBase"]
[PlyCount "68"]
[EventDate "2020.08.07"]
[EventType "swiss"]
[EventCountry "SVK"]
[TimeControl "40/5400+30:1800+30"]

1. d4 {[%emt 0:00:00]} e6 {[%emt 0:00:00]} 2. c4 {[%emt 0:00:06]} f5 {[%emt 0:00:00]} 3. g3 {[%emt 0:00:42]} Nf6 {[%emt 0:00:57]} 4. Bg2 {[%emt 0:00:11]} d5 {[%emt 0:00:38]} 5. b3 {[%emt 0:02:57]} c6 {[%emt 0:01:02]} 6. Nf3 {[%emt 0:00:28]} Bd6 {[%emt 0:00:39]} 7. O-O {[%emt 0:00:21]} Qe7 {[%emt 0:01:06]} 8. Qc2 {[%emt 0:05:29]} O-O {[%emt 0:00:34]} 9. Bb2 {[%emt 0:07:37]} Bd7 {[%emt 0:02:26]} 10. Nbd2 {[%emt 0:03:31]} Be8 {[%emt 0:02:47]} 11. Ne5 {[%emt 0:06:43]} Bh5 {[%emt 0:02:01]} 12. Ndf3 {[%emt 0:02:09]} Ne4 {[%emt 0:00:47]} 13. Rac1 {[%emt 0:03:33]} Nd7 {[%emt 0:06:55]} 14. Nxd7 {[%emt 0:05:10]} Qxd7 {[%emt 0:00:04]} 15. Ne5 {[%emt 0:02:46]} Qc7 {[%emt 0:02:12]} 16. f3 {[%emt 0:04:04]} Nf6 {[%emt 0:02:57]} 17. c5 {[%emt 0:00:19]} Be7 {[%emt 0:00:51]} 18. b4 {[%emt 0:01:28]} Nd7 {[%emt 0:01:23]} 19. a4 {[%emt 0:04:18]} Nxe5 {[%emt 0:05:54]} 20. dxe5 {[%emt 0:00:08]} f4 {[%emt 0:01:40]} 21. g4 {[%emt 0:00:22]} Bg6 {[%emt 0:00:42]} 22. Qb3 {[%emt 0:00:33]} Bg5 {[%emt 0:02:07]} 23. Bd4 {[%emt 0:01:34]} h5 {[%emt 0:07:27]} 24. h3 {[%emt 0:00:20]} hxg4 {[%emt 0:00:44]} 25. hxg4 {[%emt 0:00:02]} Qe7 {[%emt 0:05:33]} 26. Bf2 {[%emt 0:05:44]} Kf7 {[%emt 0:02:29]} 27. Qc3 {[%emt 0:14:22]} Rh8 {[%emt 0:00:16]} 28. b5 {[%emt 0:05:13]} Rh7 {[%emt 0:27:11]} 29. a5 {[%emt 0:03:17]} Bh4 {[%emt 0:07:25]} 30. Qe1 {[%emt 0:01:45]} Bxf2+ {[%emt 0:01:55]} 31. Qxf2 {[%emt 0:00:39]} Rah8 {[%emt 0:00:34]} 32. a6 {[%emt 0:00:48]} Qg5 {[%emt 0:01:51]} 33. axb7 {[%emt 0:00:36]} Qh6 {[%emt 0:00:19]} 34. Qd4 {[%emt 0:00:59]} Qh2+ {[%emt 0:00:21]} 0-1

[Event "Int SVK-ch Open 2020"]
[Site "Drienica"]
[Date "2020.08.12"]
[Round "6.20"]
[White "Kulich, Filip"]
[Black "Kucik, Patrik"]
[Result "1-0"]
[ECO "C50"]
[WhiteElo "1397"]
[BlackElo "1572"]
[Annotator "NA RC"]
[PlyCount "105"]
[EventDate "2020.08.07"]
[EventType "swiss"]
[EventCountry "SVK"]
[SourceTitle "playchess.com"]
[Source "ChessBase"]
[SourceQuality "1"]
[TimeControl "40/5400+30:1800+30"]

1. e4 {[%emt 0:00:00]} e5 {[%emt 0:00:36]} 2. Nf3 {[%emt 0:00:00]} Nc6 {[%emt 0:00:19]} 3. Bc4 {[%emt 0:00:00]} d6 {[%emt 0:00:42]} 4. c3 {[%emt 0:00:41]} Be7 {[%emt 0:01:50]} 5. d3 {[%emt 0:02:22]} Nf6 {[%emt 0:06:52]} 6. O-O {[%emt 0:00:49]} Bg4 {[%emt 0:00:29]} 7. Nbd2 {[%emt 0:04:46]} O-O {[%emt 0:04:01]} 8. b4 {[%emt 0:04:44]} a6 {[%emt 0:03:07]} 9. a4 {[%emt 0:01:09]} d5 {[%emt 0:07:42]} 10. exd5 {[%emt 0:08:10]} Nxd5 {[%emt 0:01:03]} 11. Bb2 {[%emt 0:00:37]} Nf4 {[%emt 0:01:35]} 12. Qc2 {[%emt 0:09:33]} Bd6 {[%emt 0:03:40]} 13. b5 {[%emt 0:08:44]} axb5 {[%emt 0:02:55]} 14. axb5 {[%emt 0:02:23]} Na5 {[%emt 0:03:14]} 15. Ra4 {[%emt 0:12:15]} Nxc4 {[%emt 0:02:29]} 16. Rxc4 {[%emt 0:02:41]} Qf6 {[%emt 0:06:45]} 17. g3 {[%emt 0:07:28]} Bh3 {[%emt 0:16:05]} 18. Re1 {[%emt 0:08:50]} Qg6 {[%emt 0:05:13]} 19. Rce4 {[%emt 0:05:55]} f5 {[%emt 0:05:57]} 20. Nxe5 {[%emt 0:03:27]} Bxe5 {[%emt 0:05:11]} 21. Rxe5 {[%emt 0:00:52]} Bg4 22. c4 {[%emt 0:04:17]} Ra2 {[%emt 0:04:22]} 23. Re7 {[%emt 0:02:55]} Rxb2 {[%emt 0:06:10]} 24. Qxb2 {[%emt 0:00:15]} Nxd3 {[%emt 0:00:21]} 25. Qb3 {[%emt 0:01:36]} Nxe1 {[%emt 0:00:25]} 26. c5+ {[%emt 0:00:19]} Kh8 {[%emt 0:00:23]} 27. Rxe1 {[%emt 0:00:17]} f4 {[%emt 0:00:37]} 28. f3 {[%emt 0:02:48]} Bh3 {[%emt 0:01:02]} 29. Kf2 {[%emt 0:01:02]} fxg3+ {[%emt 0:01:09]} 30. hxg3 {[%emt 0:00:09]} Rd8 {[%emt 0:00:50]} 31. Qe3 {[%emt 0:00:10]} h6 {[%emt 0:01:22]} 32. Rh1 {[%emt 0:01:28]} Bf5 {[%emt 0:00:40]} 33. Nc4 {[%emt 0:00:34]} Re8 {[%emt 0:00:44]} 34. Qd4 {[%emt 0:01:26]} Bd3 {[%emt 0:00:45]} 35. Ne5 {[%emt 0:01:06]} Qf5 {[%emt 0:01:08]} 36. Nxd3 {[%emt 0:00:30]} Qg5 {[%emt 0:00:31]} 37. Qf4 {[%emt 0:00:13]} Qd5 {[%emt 0:00:31]} 38. Rd1 {[%emt 0:01:15]} Qe6 {[%emt 0:00:33]} 39. Qd2 {[%emt 0:00:22]} Qh3 {[%emt 0:00:28]} 40. Nf4 {[%emt 0:00:00]} Qh2+ {[%emt 0:00:00]} 41. Ng2 {[%emt 0:00:39]} Qh5 {[%emt 0:00:56]} 42. Qd5 {[%emt 0:01:28]} Qg6 {[%emt 0:05:01]} 43. Nf4 {[%emt 0:01:02]} Qc2+ {[%emt 0:00:31]} 44. Rd2 {[%emt 0:00:22]} Qc1 {[%emt 0:00:31]} 45. Re2 {[%emt 0:02:17]} Ra8 {[%emt 0:01:58]} 46. Ng6+ {[%emt 0:02:53]} Kh7 {[%emt 0:05:27]} 47. Qf5 {[%emt 0:01:28]} Qh1 {[%emt 0:00:52]} 48. Nf4+ {[%emt 0:09:05]} Kg8 {[%emt 0:01:06]} 49. Qe6+ {[%emt 0:00:43]} Kh8 {[%emt 0:01:19]} 50. Qf7 {[%emt 0:02:20]} Qh2+ {[%emt 0:00:33]} 51. Ng2 {[%emt 0:00:15]} Ra1 {[%emt 0:02:12]} 52. Re8+ {[%emt 0:01:12]} Kh7 {[%emt 0:01:11]} 53. Qf5+ {[%emt 0:00:05]} 1-0

[Event "Int SVK-ch Open 2020"]
[Site "Drienica"]
[Date "2020.08.13"]
[Round "6.22"]
[White "Striskova, Lucia"]
[Black "Priechodsky, Radovan"]
[Result "0-1"]
[ECO "A35"]
[WhiteElo "1706"]
[BlackElo "1975"]
[Annotator "ChessBase"]
[PlyCount "74"]
[EventDate "2020.08.07"]
[EventType "swiss"]
[EventCountry "SVK"]
[TimeControl "40/5400+30:1800+30"]

1. c4 {[%emt 0:00:00]} c5 {[%emt 0:00:00]} 2. Nc3 {[%emt 0:00:12]} Nc6 {[%emt 0:00:00]} 3. Nf3 {[%emt 0:00:26]} g6 {[%emt 0:00:50]} 4. e3 {[%emt 0:00:50]} Bg7 {[%emt 0:06:59]} 5. d4 {[%emt 0:00:26]} b6 {[%emt 0:04:22]} 6. d5 {[%emt 0:02:26]} Ne5 {[%emt 0:01:05]} 7. Nxe5 {[%emt 0:04:31]} Bxe5 {[%emt 0:00:09]} 8. f4 {[%emt 0:00:07]} Bg7 {[%emt 0:01:11]} 9. e4 {[%emt 0:00:46]} d6 {[%emt 0:01:06]} 10. Be3 {[%emt 0:02:06]} Nf6 {[%emt 0:04:05]} 11. Be2 {[%emt 0:01:58]} O-O {[%emt 0:03:51]} 12. h3 {[%emt 0:00:45]} e6 {[%emt 0:01:02]} 13. g4 {[%emt 0:04:15]} exd5 {[%emt 0:01:38]} 14. cxd5 {[%emt 0:01:34]} Re8 {[%emt 0:00:28]} 15. Bd3 {[%emt 0:00:46]} Bb7 {[%emt 0:02:51]} 16. Qf3 {[%emt 0:01:00]} Nxe4 {[%emt 0:22:32]} 17. Bxe4 {[%emt 0:11:21]} Bxc3+ {[%emt 0:00:37]} 18. bxc3 {[%emt 0:00:06]} Qe7 {[%emt 0:00:10]} 19. Kf2 {[%emt 0:06:00]} Qxe4 {[%emt 0:00:24]} 20. Qxe4 {[%emt 0:00:12]} Rxe4 {[%emt 0:00:06]} 21. Rad1 {[%emt 0:00:20]} Rae8 {[%emt 0:01:04]} 22. Rhe1 {[%emt 0:00:14]} f5 {[%emt 0:01:35]} 23. g5 {[%emt 0:01:37]} a6 {[%emt 0:00:49]} 24. Rd3 {[%emt 0:04:14]} Kf7 {[%emt 0:01:22]} 25. Kf3 {[%emt 0:03:00]} b5 {[%emt 0:00:19]} 26. Kf2 {[%emt 0:01:41]} a5 {[%emt 0:02:53]} 27. a3 {[%emt 0:04:20]} Ra4 {[%emt 0:03:43]} 28. Bc1 {[%emt 0:00:18]} Rxe1 {[%emt 0:03:54]} 29. Kxe1 {[%emt 0:00:07]} Ba6 {[%emt 0:00:39]} 30. Rf3 {[%emt 0:06:53]} Re4+ {[%emt 0:03:53]} 31. Kf2 {[%emt 0:05:59]} b4 {[%emt 0:05:16]} 32. cxb4 {[%emt 0:04:12]} axb4 {[%emt 0:01:15]} 33. axb4 {[%emt 0:00:14]} cxb4 {[%emt 0:00:08]} 34. Rb3 {[%emt 0:00:41]} Bb5 {[%emt 0:00:55]} 35. Bd2 {[%emt 0:00:37]} Re2+ {[%emt 0:00:11]} 36. Kg3 {[%emt 0:00:26]} Rxd2 {[%emt 0:00:07]} 37. Rxb4 {[%emt 0:00:06]} Rxd5 {[%emt 0:00:08]} 0-1

[Event "Int SVK-ch Open 2020"]
[Site "Drienica"]
[Date "2020.08.12"]
[Round "6.22"]
[White "Horbalova, Ivana"]
[Black "Cisarik, Pavol"]
[Result "1-0"]
[ECO "C77"]
[WhiteElo "1306"]
[BlackElo "1635"]
[Annotator "NA"]
[PlyCount "71"]
[EventDate "2020.08.07"]
[EventType "swiss"]
[EventCountry "SVK"]
[SourceTitle "playchess.com"]
[Source "ChessBase"]
[SourceQuality "1"]
[TimeControl "40/5400+30:1800+30"]

1. e4 e5 2. Nf3 Nc6 3. Bb5 a6 4. Ba4 Nf6 5. Qe2 d6 6. h3 b5 7. Bb3 Na5 8. O-O Nxb3 9. axb3 Bb7 10. d3 Be7 11. Bg5 O-O 12. Rd1 Nd7 13. Be3 c5 14. Nbd2 f5 15. exf5 Rxf5 16. Ne4 Qc7 17. c4 b4 18. Bg5 Bxe4 19. Qxe4 Bxg5 20. Qxa8+ Kf7 21. Qd5+ Ke7 22. Rxa6 Nb6 23. Qe4 Rf4 24. Qxh7 Bf6 25. Rda1 Ke6 26. Qg8+ Kf5 27. g4+ Kg6 28. Qh8 Bd8 29. Qh5+ Kf6 30. g5+ Kf5 31. Nh4+ Ke6 32. Qg6+ Bf6 33. Qe8+ Be7 34. Ra7 Qd8 35. Qg6+ Bf6 36. Qf7# 1-0

[Event "Int SVK-ch Open 2020"]
[Site "Drienica"]
[Date "2020.08.12"]
[Round "6.23"]
[White "Gulas, Gabriel"]
[Black "Andras, Anton"]
[Result "1/2-1/2"]
[ECO "C02"]
[WhiteElo "1472"]
[BlackElo "1582"]
[Annotator "NA"]
[PlyCount "45"]
[EventDate "2020.08.07"]
[EventType "swiss"]
[EventCountry "SVK"]
[SourceTitle "playchess.com"]
[Source "ChessBase"]
[SourceQuality "1"]
[TimeControl "40/5400+30:1800+30"]

1. e4 e6 2. d4 d5 3. e5 c5 4. c3 Qb6 5. Nf3 Bd7 6. Be2 Bb5 7. O-O Bxe2 8. Qxe2 cxd4 9. cxd4 Ne7 10. Nbd2 Nec6 11. Nb3 Be7 12. Rd1 Qa6 13. Qc2 Nd7 14. Bf4 O-O 15. a3 Qa4 16. Rac1 Rac8 17. Qd3 Na5 18. Nxa5 Qxa5 19. Ng5 Bxg5 20. Bxg5 h6 21. Bxh6 gxh6 22. Qg3+ Kh7 23. Qd3+ 1/2-1/2

[Event "Int SVK-ch Open 2020"]
[Site "Drienica"]
[Date "2020.08.13"]
[Round "6.24"]
[White "Ondo, Tomas"]
[Black "Paluska, Karol"]
[Result "1/2-1/2"]
[ECO "B13"]
[WhiteElo "2065"]
[BlackElo "1873"]
[Annotator "ChessBase"]
[PlyCount "64"]
[EventDate "2020.08.07"]
[EventType "swiss"]
[EventCountry "SVK"]
[TimeControl "40/5400+30:1800+30"]

1. e4 {[%emt 0:00:00]} c6 {[%emt 0:00:00]} 2. d4 {[%emt 0:00:00]} d5 {[%emt 0:00:00]} 3. exd5 {[%emt 0:00:03]} cxd5 {[%emt 0:00:00]} 4. Bd3 {[%emt 0:00:07]} Nc6 {[%emt 0:00:25]} 5. c3 {[%emt 0:00:07]} Nf6 {[%emt 0:00:05]} 6. Bf4 {[%emt 0:00:40]} Bg4 {[%emt 0:00:17]} 7. Qb3 {[%emt 0:00:31]} Qb6 {[%emt 0:01:02]} 8. Qxb6 {[%emt 0:00:18]} axb6 {[%emt 0:00:34]} 9. h3 {[%emt 0:00:15]} Bh5 {[%emt 0:00:16]} 10. Na3 {[%emt 0:00:57]} Kd7 {[%emt 0:10:48]} 11. Nb5 {[%emt 0:01:42]} Rc8 {[%emt 0:01:14]} 12. Ne2 {[%emt 0:01:29]} e6 {[%emt 0:00:37]} 13. a4 {[%emt 0:07:44]} Bg6 {[%emt 0:07:30]} 14. Nc1 {[%emt 0:05:34]} Ne8 {[%emt 0:04:30]} 15. O-O {[%emt 0:06:57]} Bd6 {[%emt 0:00:08]} 16. Bxd6 {[%emt 0:23:31]} Nxd6 {[%emt 0:01:20]} 17. Bxg6 {[%emt 0:03:37]} hxg6 {[%emt 0:00:07]} 18. Nd3 {[%emt 0:05:19]} Ra8 {[%emt 0:13:10]} 19. f4 {[%emt 0:11:39]} f6 {[%emt 0:14:31]} 20. Nxd6 {[%emt 0:08:51]} Kxd6 {[%emt 0:00:17]} 21. b4 {[%emt 0:00:56]} Rhc8 {[%emt 0:03:17]} 22. Ra3 {[%emt 0:01:35]} Ra7 {[%emt 0:08:46]} 23. Nb2 {[%emt 0:10:12]} b5 {[%emt 0:09:39]} 24. Rfa1 {[%emt 0:00:15]} Rca8 {[%emt 0:00:07]} 25. Kf2 {[%emt 0:00:48]} bxa4 {[%emt 0:04:01]} 26. Rxa4 {[%emt 0:00:12]} b5 {[%emt 0:02:10]} 27. Rxa7 {[%emt 0:00:18]} Rxa7 {[%emt 0:00:04]} 28. Rxa7 {[%emt 0:00:13]} Nxa7 {[%emt 0:00:03]} 29. Nd3 {[%emt 0:01:44]} Nc8 {[%emt 0:02:19]} 30. Ne1 {[%emt 0:03:38]} Ke7 {[%emt 0:06:38]} 31. Nf3 {[%emt 0:01:43]} Nd6 {[%emt 0:00:04]} 32. Ke3 {[%emt 0:03:28]} Nc4+ {[%emt 0:04:18]} 1/2-1/2

[Event "Int SVK-ch Open 2020"]
[Site "Drienica"]
[Date "2020.08.12"]
[Round "6.24"]
[White "Sevcik, Ondrej"]
[Black "Ihnat, Marek"]
[Result "1/2-1/2"]
[ECO "C01"]
[WhiteElo "1017"]
[BlackElo "2065"]
[Annotator "ChessBase"]
[PlyCount "43"]
[EventDate "2020.08.07"]
[EventType "swiss"]
[EventCountry "SVK"]
[SourceTitle "playchess.com"]
[Source "ChessBase"]
[SourceQuality "1"]
[TimeControl "40/5400+30:1800+30"]

1. e4 e6 2. d4 d5 3. exd5 exd5 4. Nc3 c6 5. Bd3 Bd6 6. Nge2 Ne7 7. O-O Qc7 8. g3 Bf5 9. Bf4 Nd7 10. Qd2 O-O-O 11. a3 h6 12. b4 b5 13. a4 Bxf4 14. Nxf4 g5 15. Nfe2 bxa4 16. Rxa4 Nb6 17. Ra5 Kd7 18. Rfa1 Ra8 19. Bxf5+ Nxf5 20. Qd3 Nd6 21. Qf3 f5 22. Ra6 1/2-1/2

[Event "Int SVK-ch Open 2020"]
[Site "Drienica"]
[Date "2020.08.13"]
[Round "6.25"]
[White "Walterova, Ema"]
[Black "Brnusak, Tomas"]
[Result "0-1"]
[ECO "C01"]
[WhiteElo "1790"]
[BlackElo "2044"]
[Annotator "ChessBase"]
[PlyCount "86"]
[EventDate "2020.08.07"]
[EventType "swiss"]
[EventCountry "SVK"]
[TimeControl "40/5400+30:1800+30"]

1. e4 {[%emt 0:00:00]} e6 {[%emt 0:00:00]} 2. d4 {[%emt 0:00:00]} d5 {[%emt 0:00:35]} 3. exd5 {[%emt 0:01:35]} exd5 {[%emt 0:00:32]} 4. Nf3 {[%emt 0:01:53]} Bd6 {[%emt 0:00:55]} 5. Nc3 {[%emt 0:00:44]} Ne7 {[%emt 0:00:49]} 6. Bd2 {[%emt 0:03:34]} c6 {[%emt 0:00:56]} 7. h3 {[%emt 0:01:21]} O-O {[%emt 0:02:00]} 8. Bd3 {[%emt 0:01:04]} Bf5 {[%emt 0:01:42]} 9. Be2 {[%emt 0:07:34]} Ng6 {[%emt 0:04:35]} 10. Qc1 {[%emt 0:03:47]} Re8 {[%emt 0:03:15]} 11. O-O {[%emt 0:00:38]} Qc8 {[%emt 0:03:46]} 12. h4 {[%emt 0:13:46]} Bg4 {[%emt 0:03:11]} 13. Be3 {[%emt 0:13:29]} f5 {[%emt 0:09:43]} 14. Ne5 {[%emt 0:08:04]} Nxe5 {[%emt 0:04:09]} 15. dxe5 {[%emt 0:00:57]} Bxe2 {[%emt 0:00:16]} 16. Nxe2 {[%emt 0:00:08]} Bxe5 {[%emt 0:00:08]} 17. Bd4 {[%emt 0:04:57]} Nd7 {[%emt 0:04:16]} 18. Qg5 {[%emt 0:04:55]} c5 {[%emt 0:17:08]} 19. Bxe5 {[%emt 0:04:29]} Nxe5 {[%emt 0:00:36]} 20. Ng3 {[%emt 0:02:36]} g6 {[%emt 0:06:32]} 21. Nh5 {[%emt 0:08:21]} Nd7 {[%emt 0:01:37]} 22. Rad1 {[%emt 0:03:54]} Qc6 {[%emt 0:01:12]} 23. Rd3 {[%emt 0:04:04]} Re4 {[%emt 0:14:58]} 24. Nf4 {[%emt 0:03:45]} d4 {[%emt 0:00:41]} 25. h5 {[%emt 0:04:16]} Qf6 {[%emt 0:02:04]} 26. Qg3 {[%emt 0:00:24]} Qd6 {[%emt 0:03:34]} 27. hxg6 {[%emt 0:01:51]} Qxf4 {[%emt 0:00:37]} 28. gxh7+ {[%emt 0:00:30]} Kh8 {[%emt 0:00:07]} 29. Qg6 {[%emt 0:01:00]} Qg4 {[%emt 0:01:36]} 30. Qf7 {[%emt 0:00:27]} Qg7 {[%emt 0:00:17]} 31. Qxf5 {[%emt 0:00:16]} Rg4 {[%emt 0:00:13]} 32. Rg3 {[%emt 0:00:57]} Rxg3 {[%emt 0:00:04]} 33. fxg3 {[%emt 0:00:03]} Rf8 {[%emt 0:00:06]} 34. Qd5 {[%emt 0:00:43]} Rxf1+ {[%emt 0:00:07]} 35. Kxf1 {[%emt 0:00:02]} b6 {[%emt 0:00:59]} 36. Qa8+ {[%emt 0:00:38]} Qf8+ {[%emt 0:00:04]} 37. Qxf8+ {[%emt 0:00:06]} Nxf8 {[%emt 0:00:04]} 38. Ke2 {[%emt 0:00:23]} c4 {[%emt 0:00:20]} 39. b3 {[%emt 0:01:02]} b5 {[%emt 0:00:04]} 40. Kf3 {[%emt 0:00:46]} Kxh7 {[%emt 0:00:14]} 41. Ke4 {[%emt 0:02:50]} Ne6 {[%emt 0:00:24]} 42. a3 {[%emt 0:01:21]} Kg6 {[%emt 0:00:14]} 43. g4 {[%emt 0:00:40]} d3 {[%emt 0:00:21]} 0-1

[Event "Int SVK-ch Open 2020"]
[Site "Drienica"]
[Date "2020.08.13"]
[Round "7.1"]
[White "Manik, Mikulas"]
[Black "Bures, Jaroslav"]
[Result "1/2-1/2"]
[ECO "B11"]
[WhiteElo "2366"]
[BlackElo "2386"]
[Annotator "ChessBase"]
[PlyCount "25"]
[EventDate "2020.08.07"]
[EventType "swiss"]
[EventCountry "SVK"]
[SourceTitle "playchess.com"]
[Source "ChessBase"]
[SourceQuality "1"]
[TimeControl "40/5400+30:1800+30"]

1. e4 {[%emt 0:00:06]} c6 {[%emt 0:00:00]} 2. Nf3 {[%emt 0:00:09]} d5 {[%emt 0:00:00]} 3. Nc3 {[%emt 0:00:05]} Bg4 {[%emt 0:00:00]} 4. h3 {[%emt 0:00:06]} Bxf3 {[%emt 0:00:00]} 5. Qxf3 {[%emt 0:00:11]} Nf6 {[%emt 0:00:00]} 6. g3 {[%emt 0:03:29]} e6 {[%emt 0:13:45]} 7. Bg2 {[%emt 0:00:49]} Bc5 {[%emt 0:01:08]} 8. O-O {[%emt 0:03:19]} Bd4 {[%emt 0:02:50]} 9. d3 {[%emt 0:02:28]} Nbd7 {[%emt 0:01:40]} 10. Nd1 {[%emt 0:06:33]} Qc7 {[%emt 0:08:38]} 11. Kh1 {[%emt 0:06:36]} Rd8 {[%emt 0:09:33]} 12. Qe2 {[%emt 0:01:30]} dxe4 {[%emt 0:02:10]} 13. dxe4 {[%emt 0:03:21]} 1/2-1/2

[Event "Int SVK-ch Open 2020"]
[Site "Drienica"]
[Date "2020.08.13"]
[Round "7.1"]
[White "Banoci, Jaroslav"]
[Black "Sedlakova, Ivana"]
[Result "1-0"]
[ECO "D05"]
[WhiteElo "1833"]
[BlackElo "1983"]
[Annotator "ChessBase"]
[PlyCount "45"]
[EventDate "2020.08.07"]
[EventType "swiss"]
[EventCountry "SVK"]
[SourceTitle "playchess.com"]
[Source "ChessBase"]
[SourceQuality "1"]
[TimeControl "40/5400+30:1800+30"]

1. d4 {[%emt 0:06:42]} d5 {[%emt 0:00:00]} 2. Nf3 {[%emt 0:00:12]} Nf6 {[%emt 0:00:04]} 3. e3 {[%emt 0:00:57]} e6 {[%emt 0:09:03]} 4. Bd3 {[%emt 0:00:33]} Nbd7 {[%emt 0:07:55]} 5. Nbd2 {[%emt 0:01:33]} c5 {[%emt 0:14:22]} 6. b3 {[%emt 0:02:17]} Bd6 {[%emt 0:11:11]} 7. Bb2 {[%emt 0:02:22]} O-O {[%emt 0:12:00]} 8. Ne5 {[%emt 0:02:24]} b6 {[%emt 0:08:14]} 9. f4 {[%emt 0:02:49]} Bb7 {[%emt 0:00:44]} 10. Qf3 {[%emt 0:05:26]} Qc7 {[%emt 0:05:26]} 11. c3 {[%emt 0:03:50]} a5 {[%emt 0:14:42]} 12. O-O {[%emt 0:01:42]} c4 {[%emt 0:00:27]} 13. Bc2 {[%emt 0:02:06]} b5 {[%emt 0:01:07]} 14. Rac1 {[%emt 0:05:14]} g6 {[%emt 0:02:26]} 15. Bb1 {[%emt 0:02:17]} Ne8 {[%emt 0:00:33]} 16. Qh3 {[%emt 0:04:25]} f5 {[%emt 0:02:09]} 17. Qh6 {[%emt 0:06:57]} Ndf6 {[%emt 0:00:44]} 18. h3 {[%emt 0:02:18]} Rc8 {[%emt 0:02:13]} 19. Ndf3 {[%emt 0:02:45]} Qg7 {[%emt 0:00:40]} 20. Qh4 {[%emt 0:01:18]} h6 {[%emt 0:01:20]} 21. Kh2 {[%emt 0:04:48]} Kh7 {[%emt 0:01:04]} 22. Ng5+ {[%emt 0:00:37]} Kg8 23. Rg1 1-0

[Event "Int SVK-ch Open 2020"]
[Site "Drienica"]
[Date "2020.08.13"]
[Round "7.2"]
[White "Skovran, Jaroslav"]
[Black "Lehocz, Jozsef Jr."]
[Result "1/2-1/2"]
[ECO "B50"]
[WhiteElo "1975"]
[BlackElo "1534"]
[Annotator "ChessBase"]
[PlyCount "55"]
[EventDate "2020.08.07"]
[EventType "swiss"]
[EventCountry "SVK"]
[SourceTitle "playchess.com"]
[Source "ChessBase"]
[SourceQuality "1"]
[TimeControl "40/5400+30:1800+30"]

1. e4 {[%emt 0:00:00]} c5 {[%emt 0:00:00]} 2. Nf3 {[%emt 0:00:00]} d6 {[%emt 0:00:00]} 3. g3 {[%emt 0:00:16]} Nc6 {[%emt 0:00:54]} 4. Bg2 {[%emt 0:00:10]} Nf6 {[%emt 0:00:21]} 5. d3 {[%emt 0:00:20]} g6 {[%emt 0:00:50]} 6. O-O {[%emt 0:01:32]} Bg7 {[%emt 0:01:12]} 7. Nc3 {[%emt 0:01:47]} O-O {[%emt 0:02:38]} 8. h3 {[%emt 0:00:43]} Bd7 {[%emt 0:09:46]} 9. Ne2 {[%emt 0:05:05]} b5 {[%emt 0:07:36]} 10. c3 {[%emt 0:01:41]} a5 {[%emt 0:02:10]} 11. Qc2 {[%emt 0:01:10]} b4 {[%emt 0:08:29]} 12. Rb1 {[%emt 0:01:42]} Qc8 {[%emt 0:22:35]} 13. Kh2 {[%emt 0:00:48]} Be6 {[%emt 0:01:02]} 14. c4 {[%emt 0:11:34]} Rb8 {[%emt 0:04:45]} 15. Qd1 {[%emt 0:04:28]} Qa6 {[%emt 0:01:14]} 16. Be3 {[%emt 0:00:58]} Rfc8 {[%emt 0:01:11]} 17. Qd2 {[%emt 0:01:45]} b3 {[%emt 0:24:19]} 18. a3 {[%emt 0:02:13]} Bd7 {[%emt 0:00:10]} 19. Nc3 {[%emt 0:01:06]} a4 {[%emt 0:00:54]} 20. Ng1 {[%emt 0:01:36]} Qa5 {[%emt 0:00:36]} 21. Rbd1 {[%emt 0:12:16]} Nd4 {[%emt 0:00:38]} 22. Bxd4 {[%emt 0:02:31]} cxd4 {[%emt 0:00:03]} 23. Nce2 {[%emt 0:02:30]} Qxd2 {[%emt 0:00:41]} 24. Rxd2 {[%emt 0:00:12]} e5 {[%emt 0:00:04]} 25. f4 {[%emt 0:02:07]} Bh6 {[%emt 0:00:41]} 26. Rdd1 {[%emt 0:00:22]} Ne8 {[%emt 0:02:55]} 27. g4 {[%emt 0:02:06]} g5 {[%emt 0:00:29]} 28. f5 {[%emt 0:08:08]} 1/2-1/2